fUST/lending_fUST_20240806
["ID","MTS","AMOUNT","RATE_DAILY","PERIOD"]
[334262783,1722874028159,-177.887186,0.00014247,2]
[334262784,1722874028181,-186.463504,0.00014247,2]
[334262785,1722874028202,-250.0,0.00019027,2]
[334262786,1722874028224,-250.0,0.00019079,2]
[334262787,1722874028246,-250.0,0.00019131,2]
[334262788,1722874028268,-250.0,0.00019183,2]
[334262789,1722874028289,-250.0,0.00019236,2]
[334262790,1722874028310,-4155.2298763,0.00019256,2]
[334262791,1722874039143,-2846.54715668,0.00019256,2]
[334262792,1722874039164,-9642.56191171,0.00019256,2]
[334262793,1722874039186,-250.0,0.00019288,2]
[334262794,1722874039207,-250.0,0.0001934,2]
[334262795,1722874039229,-1782.02792966,0.00019351,2]
[334262796,1722874039251,-300.0,0.00019391,2]
[334262797,1722874039278,-250.0,0.00019392,2]
[334262798,1722874039300,-250.0,0.00019444,2]
[334262799,1722874039321,-500.0,0.0001945,2]
[334262800,1722874039343,-423.23846212,0.0001945,2]
[334262801,1722874039366,-176.79987214,0.0001945,2]
[334262802,1722874039388,-212.18064451,0.0001945,2]
[334262803,1722874039410,-500.0,0.0001945,2]
[334262804,1722874039433,-264.88325096,0.0001945,2]
[334262805,1722874039666,-388.69392666,0.0001945,2]
[334262806,1722874039689,-500.0,0.0001945,2]
[334262807,1722874039712,-500.0,0.0001945,2]
[334262808,1722874039736,-500.0,0.0001945,2]
[334262809,1722874039758,-283.12979858,0.0001945,2]
[334262810,1722874039780,-1610.68802731,0.00019451,2]
[334262811,1722874039801,-1162.60351639,0.00019451,2]
[334262812,1722874039823,-1714.84159531,0.00019477,2]
[334262813,1722874039846,-1763.21721545,0.00019477,2]
[334262814,1722874039869,-250.0,0.00019497,2]
[334262815,1722874039890,-2162.60520141,0.00019547,2]
[334262816,1722874039912,-799.63048463,0.00019547,2]
[334262817,1722874045161,-302.81833017,0.0001916,2]
[334262818,1722874045183,-13736.55403176,0.00019177,2]
[334262819,1722874047122,-4125.46228196,0.00019177,2]
[334262820,1722874051150,-1347.09173814,0.00019177,2]
[334262823,1722874149333,-912.4763458,0.00019177,2]
[334262824,1722874149355,-154.66746495,0.00019177,2]
[334262825,1722874149379,-1473.00074673,0.00019177,2]
[334262826,1722874149401,-300.0,0.0001945,2]
[334262827,1722874149425,-2139.16821494,0.00019451,2]
[334262828,1722874149447,-1794.3605686,0.00019451,2]
[334262829,1722874149467,-845.54644341,0.00019547,2]
[334262830,1722874149490,-250.0,0.00019549,2]
[334262831,1722874149511,-250.0,0.00019601,2]
[334262832,1722874149532,-250.0,0.00019653,2]
[334262833,1722874149553,-250.0,0.00019705,2]
[334262834,1722874149574,-250.0,0.00019758,2]
[334262835,1722874149594,-250.0,0.0001981,2]
[334262836,1722874149618,-250.0,0.00019862,2]
[334262837,1722874149638,-250.0,0.00019914,2]
[334262838,1722874149659,-250.0,0.00019966,2]
[334262839,1722874149680,-253.68108873,0.00019997,2]
[334262840,1722874149701,-24900.0,0.00019998,2]
[334262841,1722874149721,-269.69558364,0.00019999,2]
[334262842,1722874149741,-816.16582707,0.00019999,2]
[334262843,1722874149762,-694.17770919,0.00019999,2]
[334262844,1722874149781,-1363.34392567,0.0002,2]
[334262845,1722874149801,-1443.71584036,0.0002,2]
[334262846,1722874149823,-250.0,0.00020019,2]
[334262847,1722874149844,-194.58009581,0.0002028,2]
[334262848,1722874149865,-308.56524705,0.0002028,2]
[334262849,1722874149886,-336.04335091,0.0002028,2]
[334262850,1722874149907,-168.964361,0.00020637,2]
[334262851,1722874149926,-155.02236501,0.00020721,2]
[334262852,1722874149946,-2000.0,0.00020997,10]
[334262853,1722874149968,-150.0,0.00021,2]
[334262854,1722874149988,-35012.4181319,0.00021011,2]
[334262855,1722874150011,-420.0,0.00021395,2]
[334262856,1722874150031,-156.5983355,0.0002142,2]
[334262857,1722874150052,-727.08296365,0.0002142,2]
[334262858,1722874150072,-178.4664739,0.00021532,2]
[334262859,1722874150095,-533.87977422,0.00021532,2]
[334262860,1722874150119,-180.46429061,0.00021532,2]
[334262861,1722874150139,-664.18424721,0.00021532,2]
[334262862,1722874150159,-542.75100777,0.00021532,2]
[334262863,1722874150181,-341.84225468,0.00021532,2]
[334262864,1722874150202,-849.3304683,0.00021532,2]
[334262865,1722874150223,-165.73090826,0.00021532,2]
[334262866,1722874150245,-413.87776733,0.00021532,2]
[334262867,1722874150266,-600.49198704,0.00021542,2]
[334262868,1722874150287,-568.52238973,0.00021542,2]
[334262869,1722874150312,-309.28861534,0.00021542,2]
[334262870,1722874150332,-519.37719348,0.00021542,2]
[334262871,1722874150354,-193.81001865,0.00021542,2]
[334262872,1722874150379,-470.88148729,0.00021542,2]
[334262873,1722874150400,-201.45923245,0.00021542,2]
[334262874,1722874150423,-156.95333335,0.00021589,2]
[334262875,1722874150444,-156.80608978,0.00021591,2]
[334262876,1722874150467,-319.53535288,0.00021591,2]
[334262877,1722874150489,-154.71377951,0.00021591,2]
[334262878,1722874150509,-154.66746495,0.00021591,2]
[334262879,1722874150530,-6127.17781589,0.00021642,2]
[334262880,1722874150551,-266.69783737,0.00021805,2]
[334262881,1722874150572,-17621.1469002,0.00021906,3]
[334262882,1722874150593,-20759.5327798,0.00021906,2]
[334262883,1722874150614,-1991.65402436,0.00021906,2]
[334262884,1722874150633,-1480.40986698,0.00021916,2]
[334262885,1722874150653,-6435.24741278,0.00021916,2]
[334262886,1722874150672,-26173.58986522,0.00023244,2]
[334262887,1722874150693,-157.0,0.00023535,2]
[334262888,1722874150714,-624.44737152,0.00024258,2]
[334262889,1722874150832,-531.67525338,0.00021532,2]
[334262890,1722874150854,-403.7082582,0.00021532,2]
[334262891,1722874150880,-1157.58055814,0.00024258,2]
[334262892,1722874150901,-2656.57776675,0.00025,30]
[334262893,1722874150928,-500.0,0.00026574,2]
[334262894,1722874150950,-500.0,0.00026574,2]
[334262895,1722874150972,-500.0,0.00026574,2]
[334262896,1722874150993,-500.0,0.00026574,2]
[334262897,1722874151014,-293.06181127,0.00026574,2]
[334262898,1722874151034,-402.3465429,0.00026599,2]
[334262899,1722874151057,-156.93,0.000266,31]
[334262900,1722874151079,-156.93,0.000266,31]
[334262901,1722874151100,-156.93,0.000266,31]
[334262902,1722874151123,-160.54991199,0.00026604,2]
[334262903,1722874151143,-722.4388961,0.00026649,2]
[334262904,1722874151162,-151.27311453,0.00026946,2]
[334262905,1722874151184,-17621.1469002,0.0002699,3]
[334262906,1722874151204,-154.65203293,0.00027,15]
[334262907,1722874151224,-254.63533274,0.00027,2]
[334262908,1722874151244,-2820.44108641,0.00027,2]
[334262909,1722874151264,-1782.02792966,0.00029165,2]
[334262910,1722874151284,-154.75391149,0.0003,4]
[334262911,1722874151309,-151.0,0.0003,120]
[334262912,1722874151329,-164.0,0.0003,2]
[334262913,1722874151354,-156.93,0.000304,31]
[334262914,1722874151379,-156.93,0.000304,31]
[334262915,1722874151404,-156.93,0.000304,31]
[334262916,1722874151426,-150.5,0.00031181,120]
[334262917,1722874151448,-150.5,0.00031181,120]
[334262918,1722874151470,-150.5,0.00031191,120]
[334262919,1722874151492,-150.5,0.00031191,120]
[334262920,1722874151513,-1287.19,0.000312,14]
[334262921,1722874151533,-6782.28,0.000312,14]
[334262922,1722874151556,-150.5,0.00031201,120]
[334262923,1722874151577,-150.5,0.00031201,120]
[334262924,1722874151598,-388.54,0.000313,7]
[334262925,1722874151625,-151.0,0.00032603,120]
[334262926,1722874151648,-17621.1469002,0.00032717,4]
[334262927,1722874151670,-1987.66410742,0.00032727,4]
[334262928,1722874151712,-8862.92107249,0.00032727,4]
[334262929,1722874151735,-461.09313032,0.00033653,2]
[334262930,1722874151758,-195.378209,0.0003392,2]
[334262931,1722874151783,-169.131638,0.0003392,2]
[334262932,1722874151806,-1782.02792966,0.00034072,2]
[334262933,1722874151831,-156.93,0.000343,31]
[334262934,1722874151857,-156.93,0.000343,31]
[334262935,1722874151891,-156.93,0.000343,31]
[334262936,1722874151919,-2000.0,0.00034709,2]
[334262937,1722874151944,-2000.0,0.00034718,2]
[334262938,1722874151967,-2000.0,0.00034727,2]
[334262939,1722874151991,-2000.0,0.00034735,2]
[334262940,1722874152013,-2000.0,0.00034744,2]
[334262941,1722874152036,-2000.0,0.00034753,2]
[334262942,1722874152057,-1158.54050567,0.00034753,2]
[334262943,1722874152080,-151.0,0.00035205,120]
[334262944,1722874152102,-5028.37740938,0.00035616,3]
[334262945,1722874152300,-202.61729313,0.00021532,2]
[334262946,1722874152326,-1492.22608245,0.00023244,2]
[334262947,1722874152347,-16259.43259062,0.00035616,3]
[334262948,1722874152385,-17739.84,0.00035616,3]
[334262949,1722874152413,-14783.2,0.00035616,3]
[334262950,1722874152435,-461.09313023,0.00035957,2]
[334262951,1722874152457,-1287.19,0.000362,14]
[334262952,1722874152478,-6782.28,0.000362,14]
[334262953,1722874152499,-388.54,0.000374,30]
[334262954,1722874152673,-151.0,0.00037808,120]
[334262955,1722874153683,172.13,0.00031185,120]
[334262956,1722874153923,12319.34,0.00031185,3]
[334262957,1722874153964,150.5,0.00031185,120]
[334262958,1722874154005,151.0,0.0003,120]
[334262959,1722874154530,150.5,0.00031175,120]
[334262960,1722874154570,151.0,0.00034,120]
[334262961,1722874155069,150.5,0.00031165,120]
[334262962,1722874155150,150.5,0.00031185,120]
[334262963,1722874155701,150.5,0.00031175,120]
[334262964,1722874156188,150.5,0.00031165,120]
[334262965,1722874157574,402.3465429,0.00026599,2]
[334262966,1722874166399,1815.48686972,0.000379,2]
[334262967,1722874166426,10266.11,0.00031185,3]
[334262968,1722874180065,8555.09,0.00031185,3]
[334262969,1722874186358,427.3328344,0.00037799,2]
[334262970,1722874188178,269.5747699,0.00037799,4]
[334262971,1722874190293,615.84603058,0.00037799,4]
[334262972,1722874191836,178.8019505,0.00037799,4]
[334262973,1722874193604,7129.25,0.00031185,3]
[334262974,1722874194385,154.66746495,0.00037799,4]
[334262975,1722874195107,2874.12236173,0.00037799,4]
[334262976,1722874195567,188.91715167,0.00037799,2]
[334262977,1722874198900,168.870157,0.00037799,4]
[334262978,1722874199505,932.6763847,0.00037799,4]
[334262979,1722874199778,1152.61063276,0.00037799,2]
[334262980,1722874202712,174.55144815,0.00037799,4]
[334262981,1722874203935,153.9,0.000266,31]
[334262982,1722874203969,5941.04,0.00031185,3]
[334262983,1722874204044,153.9,0.000266,31]
[334262984,1722874204107,153.9,0.000266,31]
[334262985,1722874204170,153.9,0.000266,31]
[334262986,1722874204286,153.9,0.000266,31]
[334262987,1722874204358,153.9,0.000266,31]
[334262988,1722874204415,153.9,0.000266,31]
[334262989,1722874204472,153.9,0.000266,31]
[334262990,1722874204566,153.9,0.000266,31]
[334262991,1722874204720,153.9,0.000266,31]
[334262992,1722874204820,153.9,0.000266,31]
[334262993,1722874204896,153.9,0.000266,31]
[334262994,1722874204969,153.9,0.000266,31]
[334262995,1722874205046,153.9,0.000266,31]
[334262996,1722874205091,153.9,0.000266,31]
[334262997,1722874205118,9609.55976942,0.00037799,4]
[334262998,1722874205147,153.9,0.000304,31]
[334262999,1722874205326,153.9,0.000304,31]
[334263000,1722874205397,153.9,0.000304,31]
[334263001,1722874205472,153.9,0.000304,31]
[334263002,1722874205547,153.9,0.000304,31]
[334263003,1722874205595,153.9,0.000304,31]
[334263004,1722874205646,153.9,0.000304,31]
[334263005,1722874205717,153.9,0.000304,31]
[334263006,1722874205801,153.9,0.000304,31]
[334263007,1722874205864,153.9,0.000304,31]
[334263008,1722874205933,153.9,0.000304,31]
[334263009,1722874205998,153.9,0.000304,31]
[334263010,1722874206050,153.9,0.000304,31]
[334263011,1722874206127,153.9,0.000304,31]
[334263012,1722874206181,153.9,0.000304,31]
[334263013,1722874206234,153.9,0.000304,31]
[334263014,1722874206285,153.9,0.000304,31]
[334263015,1722874206352,153.9,0.000343,31]
[334263016,1722874206419,153.9,0.000343,31]
[334263017,1722874206546,153.9,0.000343,31]
[334263018,1722874206590,153.9,0.000343,31]
[334263019,1722874206662,153.9,0.000343,31]
[334263020,1722874206716,153.9,0.000343,31]
[334263021,1722874206789,153.9,0.000343,31]
[334263022,1722874206842,153.9,0.000343,31]
[334263023,1722874207066,153.9,0.000343,31]
[334263024,1722874207158,153.9,0.000343,31]
[334263026,1722874207370,153.9,0.000343,31]
[334263027,1722874207402,153.9,0.000343,31]
[334263028,1722874207447,153.9,0.000343,31]
[334263029,1722874207476,153.9,0.000343,31]
[334263030,1722874207504,153.9,0.000343,31]
[334263031,1722874207531,153.9,0.000343,31]
[334263032,1722874207560,153.9,0.000343,31]
[334263033,1722874207604,153.9,0.000343,31]
[334263034,1722874207727,153.9,0.000266,31]
[334263035,1722874208248,153.9,0.000266,31]
[334263036,1722874208445,153.9,0.000266,31]
[334263037,1722874208667,153.9,0.000304,31]
[334263038,1722874208781,153.9,0.000343,31]
[334263039,1722874209541,256.006286,0.00037799,4]
[334263040,1722874209630,153.9,0.000266,31]
[334263043,1722874212748,153.9,0.000266,31]
[334263044,1722874212795,153.9,0.000304,31]
[334263045,1722874212878,153.9,0.000304,31]
[334263046,1722874214722,153.9,0.000343,31]
[334263047,1722874217539,4950.86,0.00031185,3]
[334263048,1722874229631,4125.72,0.00031185,3]
[334263081,1722874232419,500.0,0.00031194,2]
[334263084,1722874232486,-299.74,0.00031195,14]
[334263085,1722874232497,-2850.26,0.00031195,60]
[334263086,1722874232528,-135.96792607,0.00031195,60]
[334263087,1722874232560,500.0,0.00031194,2]
[334263088,1722874232591,605.14326789,0.00031194,2]
[334263089,1722874234107,2397.62847862,0.00037799,4]
[334263104,1722874239451,-641.06450737,0.00031195,60]
[334263106,1722874239827,-396372.70756656,0.00031195,60]
[334263108,1722874239838,-151.0,0.00038,120]
[334263110,1722874239848,-153.9,0.000381,31]
[334263112,1722874239859,-153.9,0.000381,31]
[334263113,1722874239869,-153.9,0.000381,31]
[334263114,1722874239880,-153.9,0.000381,31]
[334263115,1722874239891,-153.9,0.000381,31]
[334263116,1722874239902,-153.9,0.000381,31]
[334263117,1722874239912,-153.9,0.000381,31]
[334263119,1722874239922,-153.9,0.000381,31]
[334263120,1722874239931,-153.9,0.000381,31]
[334263121,1722874239942,-153.9,0.000381,31]
[334263122,1722874239952,-153.9,0.000381,31]
[334263123,1722874239962,-153.9,0.000381,31]
[334263124,1722874239977,-153.9,0.000381,31]
[334263126,1722874239987,-153.9,0.000381,31]
[334263128,1722874239997,-153.9,0.000381,31]
[334263129,1722874240006,-153.9,0.000381,31]
[334263130,1722874240016,-153.9,0.000381,31]
[334263131,1722874240026,-153.9,0.000381,31]
[334263132,1722874240037,-153.9,0.000381,31]
[334263134,1722874240047,-153.9,0.000381,31]
[334263135,1722874240057,-461.09313023,0.0003826,2]
[334263136,1722874240071,-1815.48686972,0.00038425,2]
[334263137,1722874240082,-1815.48686972,0.0003895,2]
[334263138,1722874240092,-17621.1469002,0.00038969,5]
[334263139,1722874240102,-6868.0,0.00039,120]
[334263140,1722874240112,-1815.48686972,0.00039475,2]
[334263141,1722874240122,-52863.4407007,0.0003999,5]
[334263143,1722874240132,-5000.0,0.0004,40]
[334263145,1722874240142,-500.0,0.0004,120]
[334263146,1722874240152,-6868.0,0.0004,120]
[334263147,1722874240162,-200.0,0.0004,2]
[334263148,1722874240172,-1000.0,0.0004,4]
[334263149,1722874240182,-157563.83800361,0.0004,2]
[334263150,1722874240192,-302.91,0.0004,30]
[334263151,1722874240205,-1815.48686972,0.0004,2]
[334263153,1722874240223,-151.0,0.0004,14]
[334263154,1722874240233,-1029.75,0.0004,14]
[334263155,1722874240243,-283.222801,0.0004,14]
[334263156,1722874240253,-283.222801,0.0004,14]
[334263157,1722874240262,-17621.1469002,0.0004009,5]
[334263158,1722874240272,-7364.46057986,0.000401,2]
[334263159,1722874240282,-44653.57692784,0.000401,22]
[334263160,1722874240292,-17621.1469002,0.0004018,5]
[334263161,1722874240301,-70484.5876009,0.0004019,5]
[334263162,1722874240311,-300047.20767327,0.000402,120]
[334263163,1722874240322,-151.0,0.000402,14]
[334263164,1722874240333,-151.0,0.000402,14]
[334263165,1722874240346,-403.96929,0.000402,14]
[334263166,1722874240357,-1333.410886,0.000402,14]
[334263167,1722874240366,-151.0,0.000402,14]
[334263168,1722874240376,-1333.410886,0.000402,14]
[334263169,1722874240387,-403.96929,0.000402,14]
[334263170,1722874240397,-399.337991,0.000402,14]
[334263171,1722874240406,-399.337991,0.000402,14]
[334263172,1722874240417,-151.0,0.000402,14]
[334263173,1722874240429,-151.0,0.000402,14]
[334263174,1722874240439,-151.0,0.000402,14]
[334263175,1722874240450,-1885.445105,0.000402,14]
[334263176,1722874240460,-357.2178,0.000402,14]
[334263177,1722874240481,-1885.445105,0.000402,14]
[334263178,1722874240492,-357.2178,0.000402,14]
[334263179,1722874240501,-151.0,0.000402,14]
[334263180,1722874240511,-151.0,0.000402,14]
[334263181,1722874240521,-435.27347,0.000402,14]
[334263182,1722874240531,-518.35242,0.000402,14]
[334263183,1722874240541,-435.27347,0.000402,14]
[334263184,1722874240550,-518.35242,0.000402,14]
[334263185,1722874240560,-283.222801,0.000402,14]
[334263186,1722874240569,-283.222801,0.000402,14]
[334263187,1722874240579,-5057.71947137,0.00040334,2]
[334263188,1722874240590,-151.0,0.00040411,120]
[334263189,1722874240601,-461.09313023,0.00040564,2]
[334263190,1722874240610,-5057.71947137,0.00040637,2]
[334263191,1722874240620,-500.0,0.00040643,120]
[334263192,1722874240631,-288.86,0.00040643,120]
[334263193,1722874240641,-6782.28,0.000407,14]
[334263194,1722874240651,-660.8876138,0.00040721,2]
[334263195,1722874240661,-500.0,0.00040821,120]
[334263196,1722874240671,-5000.0,0.00040995,30]
[334263197,1722874240680,-325.52924746,0.00040995,3]
[334263198,1722874240690,-5000.0,0.00041,41]
[334263199,1722874240699,-1000.0,0.00041,41]
[334263200,1722874240709,-6868.0,0.00041,120]
[334263201,1722874240723,-5057.71947137,0.00041072,2]
[334263202,1722874240733,-200.0,0.00041073,2]
[334263203,1722874240742,-10793.08792773,0.00041095,15]
[334263204,1722874240751,-500.0,0.00041095,31]
[334263205,1722874240761,-500.0,0.00041095,31]
[334263206,1722874240770,-500.0,0.00041095,31]
[334263207,1722874240780,-500.0,0.00041095,31]
[334263208,1722874240790,-500.0,0.00041095,31]
[334263209,1722874240800,-500.0,0.00041095,31]
[334263210,1722874240810,-500.0,0.00041095,31]
[334263211,1722874240820,-500.0,0.00041095,31]
[334263212,1722874240830,-500.0,0.00041095,31]
[334263213,1722874240840,-500.0,0.00041095,31]
[334263214,1722874240850,-500.0,0.00041095,31]
[334263215,1722874240860,-500.0,0.00041095,31]
[334263216,1722874240870,-500.0,0.00041095,31]
[334263217,1722874240880,-501.84951467,0.00041095,31]
[334263218,1722874240890,-500.0,0.00041095,31]
[334263219,1722874240901,-500.0,0.00041095,31]
[334263220,1722874240911,-500.0,0.00041095,31]
[334263221,1722874240921,-500.0,0.00041095,31]
[334263222,1722874240931,-502.62511725,0.00041095,31]
[334263223,1722874240940,-500.0,0.00041095,31]
[334263224,1722874240950,-500.0,0.00041095,31]
[334263225,1722874240961,-517.39695905,0.00041095,31]
[334263226,1722874240974,-508.00514171,0.00041095,31]
[334263227,1722874240984,-500.0,0.00041095,31]
[334263228,1722874240994,-500.0,0.00041095,31]
[334263229,1722874241003,-500.0,0.00041095,31]
[334263230,1722874241013,-500.0,0.00041095,31]
[334263231,1722874241023,-566.18,0.00041095,31]
[334263232,1722874241033,-500.0,0.00041095,31]
[334263233,1722874241042,-500.0,0.00041095,31]
[334263234,1722874241052,-631.71,0.00041095,31]
[334263235,1722874241062,-500.0,0.00041095,31]
[334263236,1722874241072,-500.0,0.00041095,31]
[334263237,1722874241082,-500.0,0.00041095,31]
[334263238,1722874241092,-500.0,0.00041095,31]
[334263239,1722874241102,-500.0,0.00041095,31]
[334263240,1722874241112,-534.98,0.00041095,31]
[334263241,1722874241122,-500.0,0.00041095,31]
[334263242,1722874241131,-177.33865657,0.00041095,31]
[334263243,1722874241142,-500.0,0.00041095,31]
[334263244,1722874241152,-500.0,0.00041095,31]
[334263245,1722874241162,-500.0,0.00041095,31]
[334263246,1722874241171,-500.0,0.00041095,31]
[334263247,1722874241181,-500.0,0.00041095,31]
[334263248,1722874241190,-500.0,0.00041095,31]
[334263249,1722874241199,-500.0,0.00041095,31]
[334263250,1722874241208,-500.0,0.00041095,31]
[334263251,1722874241220,-500.0,0.00041095,31]
[334263252,1722874241231,-500.0,0.00041095,31]
[334263253,1722874241241,-500.0,0.00041095,31]
[334263254,1722874241250,-500.0,0.00041095,31]
[334263255,1722874241259,-500.0,0.00041095,31]
[334263256,1722874241268,-717.66,0.00041095,31]
[334263257,1722874241277,-500.0,0.00041095,31]
[334263258,1722874241286,-500.0,0.00041095,31]
[334263259,1722874241296,-500.0,0.00041095,31]
[334263260,1722874241305,-500.0,0.00041095,31]
[334263261,1722874241314,-504.58354301,0.00041095,31]
[334263262,1722874241323,-500.0,0.00041095,31]
[334263263,1722874241337,-500.0,0.00041095,31]
[334263264,1722874241347,-500.0,0.00041095,31]
[334263265,1722874241356,-500.0,0.00041095,31]
[334263266,1722874241365,-500.0,0.00041095,31]
[334263267,1722874241375,-500.0,0.00041095,31]
[334263268,1722874241384,-500.0,0.00041095,31]
[334263269,1722874241393,-500.0,0.00041095,31]
[334263270,1722874241402,-500.0,0.00041095,31]
[334263271,1722874241411,-500.0,0.00041095,31]
[334263272,1722874241423,-500.0,0.00041095,31]
[334263273,1722874241432,-500.0,0.00041095,31]
[334263274,1722874241441,-500.0,0.00041095,31]
[334263275,1722874241450,-500.0,0.00041095,31]
[334263276,1722874241460,-500.0,0.00041095,31]
[334263277,1722874241472,-500.0,0.00041095,31]
[334263278,1722874241482,-500.0,0.00041095,31]
[334263279,1722874241491,-500.0,0.00041095,31]
[334263280,1722874241500,-156.27133776,0.00041095,31]
[334263281,1722874241510,-500.0,0.00041095,31]
[334263282,1722874241519,-500.0,0.00041095,31]
[334263283,1722874241528,-500.0,0.00041095,31]
[334263284,1722874241537,-500.0,0.00041095,31]
[334263285,1722874241546,-500.0,0.00041095,31]
[334263286,1722874241555,-500.0,0.00041095,31]
[334263287,1722874241564,-593.62,0.00041095,31]
[334263288,1722874241573,-500.0,0.00041095,31]
[334263289,1722874241583,-604.59,0.00041095,31]
[334263290,1722874241592,-500.0,0.00041095,31]
[334263291,1722874241602,-556.55546111,0.00041095,20]
[334263292,1722874241611,-500.0,0.00041095,31]
[334263293,1722874241621,-500.0,0.00041095,31]
[334263294,1722874241630,-500.0,0.00041095,31]
[334263295,1722874241639,-500.0,0.00041095,31]
[334263296,1722874241649,-500.0,0.00041095,31]
[334263297,1722874241664,-500.0,0.00041095,31]
[334263298,1722874241673,-536.77,0.00041095,31]
[334263299,1722874241683,-555.28703829,0.00041095,31]
[334263300,1722874241693,-500.0,0.00041095,31]
[334263301,1722874241702,-500.0,0.00041095,31]
[334263302,1722874241711,-500.0,0.00041095,31]
[334263303,1722874241725,-500.0,0.00041095,31]
[334263304,1722874241735,-500.0,0.00041095,31]
[334263305,1722874241745,-500.0,0.00041095,31]
[334263306,1722874241755,-500.0,0.00041095,31]
[334263307,1722874241764,-500.0,0.00041095,31]
[334263308,1722874241775,-500.0,0.00041095,31]
[334263309,1722874241784,-500.0,0.00041095,31]
[334263310,1722874241794,-500.0,0.00041095,31]
[334263311,1722874241804,-500.0,0.00041095,31]
[334263312,1722874241813,-500.0,0.00041095,31]
[334263313,1722874241823,-500.0,0.00041095,31]
[334263315,1722874241833,-500.0,0.00041095,31]
[334263317,1722874241842,-500.0,0.00041095,31]
[334263318,1722874241851,-500.0,0.00041095,31]
[334263319,1722874241861,-214.31308632,0.00041095,31]
[334263320,1722874241870,-500.0,0.00041095,31]
[334263321,1722874241879,-500.0,0.00041095,31]
[334263322,1722874241889,-500.0,0.00041095,31]
[334263323,1722874241899,-500.0,0.00041095,31]
[334263324,1722874241908,-329.68998401,0.00041095,31]
[334263325,1722874241918,-500.0,0.00041095,31]
[334263326,1722874241928,-500.0,0.00041095,31]
[334263327,1722874241938,-525.99017494,0.00041095,31]
[334263328,1722874241947,-500.0,0.00041095,31]
[334263329,1722874241956,-500.0,0.00041095,31]
[334263330,1722874241965,-500.0,0.00041095,31]
[334263331,1722874241979,-500.0,0.00041095,31]
[334263332,1722874241988,-500.0,0.00041095,31]
[334263333,1722874241998,-500.0,0.00041095,31]
[334263334,1722874242007,-500.0,0.00041095,31]
[334263335,1722874242015,-500.0,0.00041095,31]
[334263336,1722874242024,-500.0,0.00041095,31]
[334263337,1722874242034,-255.02800001,0.00041095,31]
[334263338,1722874242043,-500.0,0.00041095,31]
[334263339,1722874242052,-500.0,0.00041095,31]
[334263340,1722874242062,-500.0,0.00041095,31]
[334263341,1722874242071,-500.0,0.00041095,31]
[334263342,1722874242081,-500.0,0.00041095,31]
[334263343,1722874242090,-548.78703921,0.00041095,31]
[334263344,1722874242100,-500.0,0.00041095,31]
[334263345,1722874242109,-500.0,0.00041095,31]
[334263346,1722874242119,-505.53,0.00041095,31]
[334263347,1722874242128,-500.0,0.00041095,31]
[334263348,1722874242137,-500.0,0.00041095,31]